Workbook

Sheet Зведена
F1: Додаток до рішення №2472
F2: від 28.07.2020р.
A7: Розрахунок вартості лабораторних послуг, що надаються за зверненням громадян без направлення лікаря
A8: станом на 28.07.2020 року
A9: № | B9: Найменування | G9: Вартість, грн.
A10: 1 | B10: Імуноферментний аналіз крові на антитіла IgМ до коронавірусу | G10: =Калькул!D33 -> 146
A11: 2 | B11: Імуноферментний аналіз крові на антитіла IgG до коронавірусу | G11: =Калькул!H68 -> 150
B15: Секретар ради | E15: Дєдух І.М.

Sheet Калькул
H1: Затверджено
H2: Директор КНП "Овруцька міська лікарня" Овруцької міської ради ________________ В.Г.Шубан
A4: Розрахунок
A5: вартості послуги "Імуноферментний аналіз крові на антитіла IgМ до коронавірусу", що надається за зверненням громадян без направлення лікаря
A6: на 28.07.2020 року
A8: Найменування | B8: Заробітна плата
B9: Місячний фонд заробітної плати , грн. | G9: Резерв відпусток | H9: Матеріальна допомога | I9: Фонд оплати праці, грн | J9: Нерахування, 22% | K9: Всього прямих витрат на оплату праці
B10: Посадовий оклад | C10: Підвищення, надбавка, доплата до мін.з/п | D10: Середня норма часу в місяць, год. | E10: Середня норма часу на одне обстеження, (хв.) | F10: Заробітна плата за одне обстеження (грн.)
A11: Лікар-лаборант | B11: 4772 | C11: 2362.14 | D11: 150.6 | E11: 20 | F11: =(B11+C11)/D11/60*E11 -> 15.79048251 | G11: =F11*9.1/100 -> 1.436933909 | H11: =B11/11/D11/60*E11 -> 0.9601996056 | I11: =F11+G11+H11 -> 18.18761603 | J11: =I11*22/100 -> 4.001275526 | K11: =I11+J11 -> 22.18889156
A12: Біохімік | B12: 4456 | C12: 2205.72 | D12: 150.6 | E12: 10 | F12: =(B12+C12)/D12/60*E12 -> 7.372421425 | G12: =F12*9.1/100 -> 0.6708903497 | H12: =B12/11/D12/60*E12 -> 0.448307779 | I12: =F12+G12+H12 -> 8.491619554 | J12: =I12*22/100 -> 1.868156302 | K12: =I12+J12 -> 10.35977586
A13: Фельдшер-лаборант | B13: 3826 | C13: 1893.97 | D13: 150.6 | E13: 10 | F13: =(B13+C13)/D13/60*E13 -> 6.330201417 | G13: =F13*9.1/100 -> 0.5760483289 | H13: =B13/11/D13/60*E13 -> 0.3849249467 | I13: =F13+G13+H13 -> 7.291174692 | J13: =I13*22/100 -> 1.604058432 | K13: =I13+J13 -> 8.895233124
A14: Молодша медична сестра | B14: 2480 | C14: 2243 | D14: 166.8 | E14: 4 | F14: =(B14+C14)/D14/60*E14 -> 1.887689848 | G14: =F14*9.1/100 -> 0.1717797762 | H14: =B14/11/D14/60*E14 -> 0.0901097304 | I14: =F14+G14+H14 -> 2.149579355 | J14: =I14*22/100 -> 0.472907458 | K14: =I14+J14 -> 2.622486813
A15: Разом за місяць: | I15: =I12+I11+I13+I14 -> 36.11998963 | K15: =K12+K11+K13+K14 -> 44.06638735
A17: Матеріальні витрати
A18: Найменування | D18: Вартість реактивів, грн. | F18: Об'єм, л, г або кг. шт | G18: Об'єм на 1 аналіз, гр. | H18: Вартість, грн.
A20: Тест-система імуноферментна для виявлення IgM до нуклеокапсидного антигену коронавірусу DIF-SARS-CoV-2-NP- IgM Т5-15 | D20: 28248 | F20: 400 | G20: 1 | H20: =ROUND(D20/F20*G20,2) -> 70.62
A21: Кінцевик для піпетки ( 100-1000мкл) | D21: 90 | F21: 500 | G21: 4 | H21: =ROUND(D21/F21*G21,2) -> 0.72
A22: Пробірка із пробкою | D22: 3.8 | F22: 1 | G22: 1 | H22: 3.8
A23: Рукавички не стерильні | D23: 1.64 | F23: 1 | G23: 2 | H23: =ROUND(D23/F23*G23,2) -> 3.28
A24: Спирт 70% | D24: 29.38 | F24: 100 | G24: 5 | H24: 1.47
A25: шприц 5,0 мл | D25: 1.2 | F25: 1 | G25: 1 | H25: 1.2
A26: Серветка спиртова | D26: 25 | F26: 100 | G26: 1 | H26: =ROUND(D26/F26*G26,2) -> 0.25
A27: Маска | D27: 4.9 | F27: 1 | G27: 1 | H27: =ROUND(D27/F27*G27,2) -> 4.9
A28: Разом за місяць: | H28: =SUM(H20:I27) -> 86.24
A30: Загальновиробничі витрати | B30: 0.32 | D30: =ROUND(I15*B30,2) -> 11.56
A31: Адміністративні витрати | B31: 0.125 | D31: =ROUND(I15*B31,2) -> 4.51
A32: Всього витрат | D32: =ROUND((K15+H28+D30+D31),0) -> 146
A33: Вартість 1-го визначення | D33: =D32 -> 146
A35: Вартість 1-го визначення | H35: =D33 -> 146 | J35: грн. | K35: 25.07
A37: Розрахунок
A38: вартості послуги "Імуноферментний аналіз крові на антитіла IgG до коронавірусу", що надається за зверненням громадян без направлення лікаря
A39: на 28.07.2020 року
A41: Найменування | B41: Заробітна плата
B42: Місячний фонд заробітної плати , грн. | G42: Резерв відпусток | H42: Матеріальна допомога | I42: Фонд оплати праці, грн | J42: Нерахування, 22% | K42: Всього прямих витрат на оплату праці
B43: Посадовий оклад | C43: Підвищення, надбавка, доплата до мін.з/п | D43: Середня норма часу в місяць, год. | E43: Середня норма часу на одне обстеження, (хв.) | F43: Заробітна плата за одне обстеження (грн.)
A44: Лікар-лаборант | B44: 4772 | C44: 2362.14 | D44: 150.6 | E44: 20 | F44: =(B44+C44)/D44/60*E44 -> 15.79048251 | G44: =F44*9.1/100 -> 1.436933909 | H44: =B44/11/D44/60*E44 -> 0.9601996056 | I44: =F44+G44+H44 -> 18.18761603 | J44: =I44*22/100 -> 4.001275526 | K44: =I44+J44 -> 22.18889156
A45: Біохімік | B45: 4456 | C45: 2205.72 | D45: 150.6 | E45: 10 | F45: =(B45+C45)/D45/60*E45 -> 7.372421425 | G45: =F45*9.1/100 -> 0.6708903497 | H45: =B45/11/D45/60*E45 -> 0.448307779 | I45: =F45+G45+H45 -> 8.491619554 | J45: =I45*22/100 -> 1.868156302 | K45: =I45+J45 -> 10.35977586
A46: Фельдшер-лаборант | B46: 3826 | C46: 1893.97 | D46: 150.6 | E46: 10 | F46: =(B46+C46)/D46/60*E46 -> 6.330201417 | G46: =F46*9.1/100 -> 0.5760483289 | H46: =B46/11/D46/60*E46 -> 0.3849249467 | I46: =F46+G46+H46 -> 7.291174692 | J46: =I46*22/100 -> 1.604058432 | K46: =I46+J46 -> 8.895233124
A47: Молодша медична сестра | B47: 2480 | C47: 2243 | D47: 166.8 | E47: 4 | F47: =(B47+C47)/D47/60*E47 -> 1.887689848 | G47: =F47*9.1/100 -> 0.1717797762 | H47: =B47/11/D47/60*E47 -> 0.0901097304 | I47: =F47+G47+H47 -> 2.149579355 | J47: =I47*22/100 -> 0.472907458 | K47: =I47+J47 -> 2.622486813
A48: Разом за місяць: | I48: =I45+I44+I46+I47 -> 36.11998963 | K48: =K45+K44+K46+K47 -> 44.06638735
A50: Матеріальні витрати
A51: Найменування | D51: Вартість реактивів, грн. | F51: Об'єм, л, г або кг. шт | G51: Об'єм на 1 аналіз, гр. | H51: Вартість, грн.
A53: ІФА-набір EQUI SARS-CoV-2 Ig G | D53: 5200 | F53: 70 | G53: 1 | H53: =ROUND(D53/F53*G53,2) -> 74.29
A54: Кінцевик для піпетки ( 100-1000мкл) | D54: 90 | F54: 500 | G54: 4 | H54: =ROUND(D54/F54*G54,2) -> 0.72
A55: Пробірка із пробкою | D55: 3.8 | F55: 1 | G55: 1 | H55: 3.8
A56: Рукавички не стерильні | D56: 1.64 | F56: 1 | G56: 2 | H56: 3.28
A57: Спирт 70% | D57: 29.38 | F57: 100 | G57: 5 | H57: 1.47
A58: шприц 5,0 мл | D58: 1.2 | F58: 1 | G58: 1 | H58: 1.2
A59: Серветка спиртова | D59: 25 | F59: 100 | G59: 1 | H59: =ROUND(D59/F59*G59,2) -> 0.25
A60: Маска | D60: 4.9 | F60: 1 | G60: 1 | H60: =ROUND(D60/F60*G60,2) -> 4.9
A61: Разом за місяць: | H61: =SUM(H53:I60) -> 89.91
A63: Загальновиробничі витрати | B63: 0.32 | D63: =ROUND(I48*B63,2) -> 11.56
A64: Адміністративні витрати | B64: 0.125 | D64: =ROUND(I48*B64,2) -> 4.51
A65: Всього витрат | D65: =ROUND((K48+H61+D63+D64),1) -> 150
A66: Вартість 1-го визначення | D66: =D65 -> 150
A68: Вартість 1-го визначення | H68: =D66 -> 150 | J68: грн. | K68: 25.07

Sheet Ціни 01.01.2015 (hidden)
B1: Фімісит | C1: Реагент | D1: Об"єм | E1: Вартість ( грн.)
A2: Агар сольовий | D2: 1 кг. | E2: 540
A3: Агар вісмут сульфіт (ВСА) | D3: 1 кг. | E3: 948
A4: АГВ | D4: 1 кг | E4: 606
A5: Азур-еозин по Май-Грювальду | D5: 1 бут.- 1 литр | E5: 190
A6: Азур-еозин по Романовському | D6: 1 бут.- 1 литр | E6: 115.35
A7: АЛТ | B7: 61.6 | C7: 54.6 | D7: кор.
A8: Альбуцид | B8: 61.6 | C8: 54.6 | D8: кор. /300гр | E8: 9.26
A9: АСТ | B9: 61.6 | C9: 54.6 | D9: кор.
A10: Білірубін | B10: 61.6 | C10: 58.8 | D10: кор.
A11: Бинт 5*10 | D11: 5 м | E11: 3.07
A12: Вата | D12: 100 гр. | E12: 6.6
A13: В-нафтол | D13: 1 кг
A14: Гемоглобін | B14: 53.2 | C14: 44.35 | D14: 400 определений | E14: 97.37
A15: Гліцерин | D15: 1250 гр. | E15: 25
A16: Глюкоза ферментна | B16: 78.4 | C16: 108.7 | D16: 50 определений | E16: 136.32
A17: Еритроцити баранів консерв. | D17: 1 флак.-10 мл. | E17: 115
A18: Загальний білок | B18: 81.2 | C18: 56.2 | D18: 1000 определений | E18: 128.83
A19: Капіляри Панченкова | D19: шт.
A20: Капіляри Салі | D20: шт.
A21: Кислота сульфосаліцилова 20% | D21: порош.1 кг. | E21: 150
A22: Коларгол | D22: 1 кг
A23: Креатинін | B23: 89.6 | C23: 79.8 | D23: 100 определений | E23: 130.33
A24: Лідокаїн
A25: Масло імерсійне | D25: 100мл/флак. | E25: 45.95
A26: Мочевина | B26: Д 65,80 | C26: Д 52,50 | D26: 190/95 опр | E26: 112.35
A27: Набір для ГГТ | D27: упак. | E27: 176.8
A28: Набір для РМП | D28: 10амп х 2 мл. | E28: 217.21
A29: Натрій лимоннокислий | D29: порош.1 кг. | E29: 56.8
A30: Оцтова кислота | D30: 1 бут.1 литр. | E30: 40
A31: Папір для ЕКГ | D31: 1 рулон | E31: 29.57
A32: Піпетка | D32: 1шт. | E32: 17.4
A33: Плазма кроляча | D33: упак. | E33: 110
A34: Пробірка (10*90) - L | D34: 1шт. | E34: 1.2
A35: Пробірка (14*100) - Hb | D35: 1шт. | E35: 0.77
A36: Пробірка (14*120) - Эр | D36: 1шт. | E36: 0.96
A37: Пробірка (15*150) | D37: 1шт.
A38: Пробірка (16*150) | D38: 1шт. | E38: 1.02
A39: Пробірка центрифужна | D39: 1шт. | E39: 1.97
A40: Розчин бріліантової зелені | D40: 1 флак.-50 гр | E40: 45
A41: Розчин метиленової синьки 1% | D41: 1 уп.-50 гр | E41: 64
A42: Рукавички нестерильні | D42: 1 пара. | E42: 1.69
A43: Рукавички стерильні латексні | D43: 1 пара. | E43: 4
A44: CaCl2 (кальцій хлор)
A45: Середовище Левіна | D45: 1 кг | E45: 660
A46: Середовище Олькеницького | D46: 1 кг | E46: 840
A47: Середовище Плоскірева | D47: 1 кг | E47: 780
A48: Серомукоїди (Генесиз) | B48: 95.2 | D48: 40 опред-упак. | E48: 120.15
A49: Скарифікатор | D49: 1 шт. | E49: 0.14
A50: Скло предметне | D50: 50 шт. | E50: 17.05
A51: Скло покрівельне | C51: 24/24 разм. | D51: 100 шт. уп. | E51: 11.45
A52: Спирт | D52: 1 бут.- 100 гр. | E52: 12.58
A53: С-реактивний білок | D53: упак.-125мл | E53: 2808
A54: Стерильна гінекологічна щіточка (цеврикальна) | D54: 1 шт. | E54: 1.39
A55: Тест-реагент А | D55: 1 флак.-100 доз | E55: 36.3
A56: Тест-реагент В | D56: 1 флак.-100 доз | E56: 36.3
A57: Тест-реагент Д | D57: 1 флак.-100 доз | E57: 105.05
A58: Тимол | B58: 58.8 | C58: 52.5 | D58: упак. | E58: 71.7
A59: Тромбопластин | D59: 1 кг. | E59: 46.75
A60: Фізрозчин NaCl 3% | D60: 10 ампул | E60: 44
A61: Фільтрувальний папір | D61: 1 кг | E61: 352.55
A62: Фенол | D62: 1 кг | E62: 199.8
A63: Чашка Петрі | C63: скло | D63: 1 шт. | E63: 18.4
A64: Шприц 5,0 | D64: 1 шт. | E64: 1.04
A65: Шприц 10,0 | D65: 1 шт. | E65: 1.71

Sheet Лист1 (hidden)
B1: Фімісит | C1: Реагент | D1: Об"єм | E1: Вартість ( грн.)
A2: Агар сольовий
A3: Агар вісмут сульфіт (ВСА)
A4: АГВ
A5: Азур-еозин по Май-Грювальду
A6: Азур-еозин по Романовському
A7: АЛТ
A8: Альбуцид
A9: АСТ
A10: Білірубін
A11: Бинт 5*10
A12: Вата
A13: В-нафтол
A14: Гемоглобін
A15: Гліцерин
A16: Глюкоза ферментна
A17: Еритроцити баранів консерв.
A18: Загальний білок
A19: Капіляри Панченкова
A20: Капіляри Салі
A21: Кислота сульфосаліцилова 20%
A22: Коларгол
A23: Креатинін
A24: Лідокаїн
A25: Масло імерсійне
A26: Мочевина
A27: Набір для ГГТ
A28: Набір для РМП
A29: Натрій лимоннокислий
A30: Оцтова кислота
A31: Папір для ЕКГ
A32: Піпетка
A33: Плазма кроляча
A34: Пробірка (10*90) - L
A35: Пробірка (14*100) - Hb
A36: Пробірка (14*120) - Эр
A37: Пробірка (15*150)
A38: Пробірка (16*150)
A39: Пробірка центрифужна
A40: Розчин бріліантової зелені
A41: Розчин метиленової синьки 1%
A42: Рукавички нестерильні
A43: Рукавички стерильні латексні
A44: CaCl2 (кальцій хлор)
A45: Середовище Левіна
A46: Середовище Олькеницького
A47: Середовище Плоскірева
A48: Серомукоїди (Генесиз)
A49: Скарифікатор
A50: Скло предметне
A51: Скло покрівельне
A52: Спирт
A53: С-реактивний білок
A54: Стерильна гінекологічна щіточка (цеврикальна)
A55: Тест-реагент А
A56: Тест-реагент В
A57: Тест-реагент Д
A58: Тимол
A59: Тромбопластин
A60: Фізрозчин NaCl 3%
A61: Фільтрувальний папір
A62: Фенол
A63: Чашка Петрі
A64: Шприц 5,0
A65: Шприц 10,0
